[Event "WYCC 2018 G16"]
[Site "Halkidiki"]
[Date "2018.10.27"]
[Round "8"]
[White "Kucharska, Honorata"]
[Black "Cervantes Landeiro, Thalia"]
[Result "1-0"]
[ECO "D00"]
[WhiteElo "2073"]
[BlackElo "2129"]
[Annotator "NA"]
[PlyCount "85"]
[EventDate "2018.10.20"]
[EventType "swiss"]
[EventCountry "GRE"]
[SourceTitle "playchess.com"]
[Source "ChessBase"]
[SourceQuality "1"]
[TimeControl "40/5400+30:1800+30"]

1. d4 {[%emt 0:00:00]} d5 {[%emt 0:00:00]} 2. Nc3 {[%emt 0:00:00]} Nf6 {[%emt 0:00:00]} 3. Bf4 {[%emt 0:00:00]} g6 {[%emt 0:02:00]} 4. e3 {[%emt 0:00:09]} Bg7 {[%emt 0:00:08]} 5. h4 {[%emt 0:00:25]} c5 {[%emt 0:03:45]} 6. Nb5 {[%emt 0:01:44]} Na6 {[%emt 0:00:13]} 7. c3 {[%emt 0:00:39]} O-O {[%emt 0:05:11]} 8. Be2 {[%emt 0:04:32]} cxd4 {[%emt 0:10:15]} 9. exd4 {[%emt 0:00:44]} Qb6 {[%emt 0:01:03]} 10. a4 {[%emt 0:04:01]} Bd7 {[%emt 0:03:44]} 11. Nf3 {[%emt 0:05:04]} Bxb5 {[%emt 0:17:56]} 12. axb5 {[%emt 0:04:39]} Nc7 {[%emt 0:00:30]} 13. Bxc7 {[%emt 0:02:08]} Qxc7 {[%emt 0:00:10]} 14. O-O {[%emt 0:00:48]} Ne4 {[%emt 0:06:48]} 15. Ng5 {[%emt 0:02:40]} Nd6 {[%emt 0:05:44]} 16. Bd3 {[%emt 0:04:58]} a6 {[%emt 0:05:39]} 17. bxa6 {[%emt 0:02:21]} bxa6 {[%emt 0:00:03]} 18. Rxa6 {[%emt 0:02:49]} Rxa6 {[%emt 0:03:56]} 19. Bxa6 {[%emt 0:00:06]} Qb6 {[%emt 0:03:15]} 20. Qe2 {[%emt 0:00:43]} Nf5 {[%emt 0:04:31]} 21. Bd3 {[%emt 0:05:11]} Nxh4 {[%emt 0:09:07]} 22. Qg4 {[%emt 0:02:41]} h6 {[%emt 0:01:59]} 23. Nxf7 {[%emt 0:03:25]} Rxf7 {[%emt 0:08:21]} 24. Qxh4 {[%emt 0:00:05]} g5 {[%emt 0:01:15]} 25. Qh3 {[%emt 0:00:34]} Qd6 {[%emt 0:01:44]} 26. Bf5 {[%emt 0:04:52]} Rf8 {[%emt 0:01:39]} 27. Be6+ {[%emt 0:01:21]} Kh8 {[%emt 0:00:03]} 28. Re1 {[%emt 0:00:09]} Rf6 {[%emt 0:02:40]} 29. Qe3 {[%emt 0:01:37]} Rf4 {[%emt 0:00:39]} 30. Qd3 {[%emt 0:01:27]} Rf6 {[%emt 0:00:46]} 31. Qh3 {[%emt 0:03:15]} Rf8 {[%emt 0:00:28]} 32. b4 {[%emt 0:01:10]} Qc6 {[%emt 0:00:42]} 33. Bd7 {[%emt 0:01:21]} Qf6 {[%emt 0:01:27]} 34. Qe3 {[%emt 0:00:48]} Qd6 {[%emt 0:00:38]} 35. Qxe7 {[%emt 0:00:30]} Qc7 {[%emt 0:00:18]} 36. Re3 {[%emt 0:04:22]} Ra8 {[%emt 0:00:46]} 37. g3 {[%emt 0:00:24]} Rf8 {[%emt 0:00:31]} 38. Bg4 {[%emt 0:01:23]} Qc4 {[%emt 0:00:27]} 39. Qe6 {[%emt 0:02:30]} Qa2 {[%emt 0:00:35]} 40. Bf5 {[%emt 0:00:00]} Rf6 {[%emt 0:00:00]} 41. Qe8+ {[%emt 0:00:51]} Bf8 {[%emt 0:01:44]} 42. Qd7 {[%emt 0:00:09]} Bg7 {[%emt 0:02:19]} 43. Re8+ {[%emt 0:00:07]} 1-0

[Event "WYCC 2018 G16"]
[Site "Halkidiki"]
[Date "2018.10.27"]
[Round "8"]
[White "Srdanovic, Jovana"]
[Black "Rudzinska, Michalina"]
[Result "1-0"]
[ECO "A44"]
[WhiteElo "2072"]
[BlackElo "2073"]
[Annotator "NA"]
[PlyCount "133"]
[EventDate "2018.10.20"]
[EventType "swiss"]
[EventCountry "GRE"]
[SourceTitle "playchess.com"]
[Source "ChessBase"]
[SourceQuality "1"]
[TimeControl "40/5400+30:1800+30"]

1. d4 {[%emt 0:00:00]} c5 {[%emt 0:00:00]} 2. d5 {[%emt 0:00:00]} e5 {[%emt 0:00:00]} 3. Nc3 {[%emt 0:05:08]} d6 {[%emt 0:00:00]} 4. e4 {[%emt 0:01:50]} Be7 {[%emt 0:00:09]} 5. Nf3 {[%emt 0:02:06]} Nf6 {[%emt 0:00:20]} 6. Bb5+ {[%emt 0:03:18]} Nbd7 {[%emt 0:00:28]} 7. a4 {[%emt 0:00:29]} O-O {[%emt 0:00:20]} 8. O-O {[%emt 0:01:44]} Ne8 {[%emt 0:01:01]} 9. Bd3 {[%emt 0:03:00]} g6 {[%emt 0:02:02]} 10. Bh6 {[%emt 0:11:25]} Ng7 {[%emt 0:00:11]} 11. Qd2 {[%emt 0:09:54]} Nf6 {[%emt 0:03:33]} 12. h3 {[%emt 0:06:52]} Kh8 {[%emt 0:06:28]} 13. Be3 {[%emt 0:19:25]} Ng8 {[%emt 0:07:18]} 14. Nh2 {[%emt 0:04:18]} f5 {[%emt 0:06:34]} 15. f4 {[%emt 0:04:08]} exf4 {[%emt 0:11:27]} 16. Bxf4 {[%emt 0:00:58]} g5 {[%emt 0:01:05]} 17. Be3 {[%emt 0:00:48]} f4 {[%emt 0:00:13]} 18. Bf2 {[%emt 0:00:05]} Bf6 {[%emt 0:00:30]} 19. Be2 {[%emt 0:00:27]} h5 {[%emt 0:02:40]} 20. Qd1 {[%emt 0:01:15]} Qe8 {[%emt 0:03:26]} 21. Nb5 {[%emt 0:01:58]} Be5 {[%emt 0:32:44]} 22. Nc7 {[%emt 0:00:49]} Qg6 {[%emt 0:00:19]} 23. Nxa8 {[%emt 0:00:28]} Nf6 {[%emt 0:00:28]} 24. Nf3 {[%emt 0:03:45]} g4 {[%emt 0:01:23]} 25. Nxe5 {[%emt 0:03:20]} dxe5 {[%emt 0:00:05]} 26. h4 {[%emt 0:07:10]} f3 {[%emt 0:00:52]} 27. Bxf3 {[%emt 0:00:13]} gxf3 {[%emt 0:00:10]} 28. Qxf3 {[%emt 0:00:09]} Bg4 {[%emt 0:00:45]} 29. Qd3 {[%emt 0:00:24]} c4 {[%emt 0:02:21]} 30. Qa3 {[%emt 0:01:12]} Rxa8 {[%emt 0:00:17]} 31. Rae1 {[%emt 0:06:58]} Nxe4 {[%emt 0:01:53]} 32. Bg3 {[%emt 0:01:08]} Bf5 {[%emt 0:10:04]} 33. Bxe5 {[%emt 0:00:31]} Rg8 {[%emt 0:00:23]} 34. Qf3 {[%emt 0:00:50]} Nd6 {[%emt 0:02:41]} 35. Qg3 {[%emt 0:00:30]} Qxg3 {[%emt 0:00:50]} 36. Bxg3 {[%emt 0:00:03]} Nge8 {[%emt 0:01:03]} 37. Be5+ {[%emt 0:00:21]} Kh7 {[%emt 0:00:06]} 38. Bxd6 {[%emt 0:00:03]} Nxd6 {[%emt 0:00:06]} 39. Re7+ {[%emt 0:00:08]} Kg6 {[%emt 0:00:48]} 40. c3 {[%emt 0:00:00]} a6 {[%emt 0:00:00]} 41. Rfe1 {[%emt 0:02:09]} Rd8 {[%emt 0:04:11]} 42. Kf2 {[%emt 0:01:10]} Ne4+ {[%emt 0:03:11]} 43. R7xe4 {[%emt 0:00:32]} Bxe4 {[%emt 0:00:07]} 44. Rxe4 {[%emt 0:00:03]} Rxd5 {[%emt 0:00:08]} 45. Ke2 {[%emt 0:00:10]} Rc5 {[%emt 0:03:38]} 46. Re7 {[%emt 0:00:54]} Ra5 {[%emt 0:03:00]} 47. Rxb7 {[%emt 0:00:31]} Rxa4 {[%emt 0:00:07]} 48. Ke3 {[%emt 0:00:55]} Ra1 {[%emt 0:06:22]} 49. Rb4 {[%emt 0:03:07]} Rg1 {[%emt 0:01:43]} 50. Kf3 {[%emt 0:02:38]} Rb1 {[%emt 0:02:12]} 51. Rxc4 {[%emt 0:00:10]} Rxb2 {[%emt 0:00:07]} 52. Rc6+ {[%emt 0:00:05]} Kf5 {[%emt 0:00:17]} 53. Rxa6 {[%emt 0:00:04]} Rc2 {[%emt 0:01:03]} 54. Ra5+ {[%emt 0:00:32]} Kg6 {[%emt 0:00:19]} 55. Rc5 {[%emt 0:00:09]} Rc1 {[%emt 0:00:26]} 56. c4 {[%emt 0:00:31]} Kf6 {[%emt 0:03:19]} 57. Rxh5 {[%emt 0:02:18]} Rxc4 {[%emt 0:00:04]} 58. g3 {[%emt 0:00:30]} Rc3+ {[%emt 0:00:15]} 59. Kg4 {[%emt 0:00:10]} Rc4+ {[%emt 0:00:06]} 60. Kh3 {[%emt 0:00:04]} Kg6 {[%emt 0:00:43]} 61. Rb5 {[%emt 0:00:09]} Rc1 {[%emt 0:01:37]} 62. h5+ {[%emt 0:00:10]} Kh6 {[%emt 0:00:05]} 63. Kh4 {[%emt 0:00:05]} Rh1+ {[%emt 0:00:13]} 64. Kg4 {[%emt 0:00:03]} Ra1 {[%emt 0:00:09]} 65. Rb6+ {[%emt 0:00:04]} Kh7 {[%emt 0:00:06]} 66. Kg5 {[%emt 0:00:29]} Ra5+ {[%emt 0:00:08]} 67. Kh4 {[%emt 0:00:03]} 1-0

[Event "WYCC 2018 G16"]
[Site "Halkidiki"]
[Date "2018.10.27"]
[Round "8"]
[White "Sankova, Stella"]
[Black "Hajiyeva, Laman"]
[Result "0-1"]
[ECO "C11"]
[WhiteElo "2051"]
[BlackElo "1916"]
[Annotator "NA"]
[PlyCount "42"]
[EventDate "2018.10.20"]
[EventType "swiss"]
[EventCountry "GRE"]
[SourceTitle "playchess.com"]
[Source "ChessBase"]
[SourceQuality "1"]
[TimeControl "40/5400+30:1800+30"]

1. e4 {[%emt 0:00:00]} e6 {[%emt 0:00:00]} 2. d4 {[%emt 0:00:00]} d5 {[%emt 0:00:00]} 3. Nc3 {[%emt 0:00:00]} Nf6 {[%emt 0:00:00]} 4. e5 {[%emt 0:00:00]} Nfd7 {[%emt 0:00:00]} 5. f4 {[%emt 0:00:00]} c5 {[%emt 0:00:00]} 6. Nf3 {[%emt 0:00:00]} Nc6 {[%emt 0:00:00]} 7. Be3 {[%emt 0:00:00]} a6 {[%emt 0:00:01]} 8. Qd2 {[%emt 0:00:00]} cxd4 {[%emt 0:00:10]} 9. Nxd4 {[%emt 0:00:05]} Bc5 {[%emt 0:00:07]} 10. O-O-O {[%emt 0:00:05]} Nxd4 {[%emt 0:00:11]} 11. Bxd4 {[%emt 0:00:05]} O-O {[%emt 0:00:22]} 12. Bxc5 {[%emt 0:01:28]} Nxc5 {[%emt 0:00:10]} 13. Qd4 {[%emt 0:00:04]} Qc7 {[%emt 0:05:10]} 14. h4 {[%emt 0:01:03]} Bd7 {[%emt 0:08:40]} 15. h5 {[%emt 0:10:24]} Rac8 {[%emt 0:08:21]} 16. Kb1 {[%emt 0:02:27]} Ne4 {[%emt 0:06:51]} 17. Rh3 {[%emt 0:00:11]} f6 {[%emt 0:10:56]} 18. Rc1 {[%emt 0:30:15]} fxe5 {[%emt 0:04:59]} 19. fxe5 {[%emt 0:00:07]} Rf4 {[%emt 0:06:11]} 20. Nxe4 {[%emt 0:19:49]} Rxe4 {[%emt 0:00:40]} 21. Qa7 {[%emt 0:00:15]} Qxc2+ {[%emt 0:02:30]} 0-1

[Event "WYCC 2018 G16"]
[Site "Halkidiki"]
[Date "2018.10.27"]
[Round "8"]
[White "Cramling Bellon, Anna"]
[Black "Nemcova, Karin"]
[Result "1/2-1/2"]
[ECO "E35"]
[WhiteElo "2025"]
[BlackElo "1888"]
[Annotator "NA"]
[PlyCount "121"]
[EventDate "2018.10.20"]
[EventType "swiss"]
[EventCountry "GRE"]
[SourceTitle "playchess.com"]
[Source "ChessBase"]
[SourceQuality "1"]
[TimeControl "40/5400+30:1800+30"]

1. d4 {[%emt 0:00:00]} Nf6 {[%emt 0:00:00]} 2. c4 {[%emt 0:00:00]} e6 {[%emt 0:00:00]} 3. Nc3 {[%emt 0:00:00]} Bb4 {[%emt 0:00:00]} 4. Qc2 {[%emt 0:00:00]} d5 {[%emt 0:00:00]} 5. cxd5 {[%emt 0:00:29]} exd5 {[%emt 0:00:06]} 6. Bg5 {[%emt 0:00:19]} h6 {[%emt 0:00:06]} 7. Bh4 {[%emt 0:00:05]} c5 {[%emt 0:02:39]} 8. dxc5 {[%emt 0:00:17]} g5 {[%emt 0:02:36]} 9. Bg3 {[%emt 0:00:05]} Ne4 {[%emt 0:00:39]} 10. e3 {[%emt 0:00:05]} Qa5 {[%emt 0:00:38]} 11. Rc1 {[%emt 0:00:35]} Qxa2 {[%emt 0:01:27]} 12. Bb5+ {[%emt 0:00:09]} Bd7 {[%emt 0:00:13]} 13. Bxd7+ {[%emt 0:00:05]} Nxd7 {[%emt 0:00:06]} 14. Nge2 {[%emt 0:00:05]} Nxc3 {[%emt 0:12:00]} 15. Nxc3 {[%emt 0:00:14]} Qc4 {[%emt 0:00:28]} 16. Rd1 {[%emt 0:02:59]} Nxc5 {[%emt 0:11:37]} 17. Rd4 {[%emt 0:21:44]} Bxc3+ {[%emt 0:22:22]} 18. bxc3 {[%emt 0:00:42]} Qb3 {[%emt 0:00:41]} 19. Qxb3 {[%emt 0:00:16]} Nxb3 {[%emt 0:00:07]} 20. Rxd5 {[%emt 0:00:04]} b6 {[%emt 0:01:12]} 21. h4 {[%emt 0:20:36]} g4 {[%emt 0:09:15]} 22. Ke2 {[%emt 0:05:07]} O-O {[%emt 0:07:32]} 23. Rb1 {[%emt 0:11:35]} Nc5 {[%emt 0:00:34]} 24. Rb4 {[%emt 0:02:22]} f5 {[%emt 0:03:07]} 25. f3 {[%emt 0:09:56]} gxf3+ {[%emt 0:04:15]} 26. gxf3 {[%emt 0:00:02]} Rad8 {[%emt 0:00:29]} 27. Rbd4 {[%emt 0:14:59]} Rxd5 {[%emt 0:05:47]} 28. Rxd5 {[%emt 0:00:01]} Kh7 {[%emt 0:00:29]} 29. Be5 {[%emt 0:07:07]} Rf7 {[%emt 0:08:18]} 30. h5 {[%emt 0:00:50]} Rd7 {[%emt 0:02:14]} 31. e4 {[%emt 0:02:58]} fxe4 {[%emt 0:00:55]} 32. fxe4 {[%emt 0:00:03]} Re7 {[%emt 0:00:08]} 33. Ke3 {[%emt 0:00:26]} a5 {[%emt 0:00:47]} 34. Kf4 {[%emt 0:01:18]} a4 {[%emt 0:01:21]} 35. Kf5 {[%emt 0:01:09]} Rf7+ {[%emt 0:00:36]} 36. Kg4 {[%emt 0:00:30]} Nd7 {[%emt 0:03:36]} 37. Bd4 {[%emt 0:00:38]} a3 {[%emt 0:00:14]} 38. c4 {[%emt 0:00:17]} a2 {[%emt 0:01:04]} 39. Kg3 {[%emt 0:00:43]} Nf8 {[%emt 0:00:41]} 40. Rd8 {[%emt 0:00:00]} Rd7 {[%emt 0:00:00]} 41. Rxf8 {[%emt 0:15:52]} Rxd4 {[%emt 0:00:40]} 42. Ra8 {[%emt 0:00:07]} Rxe4 {[%emt 0:02:00]} 43. Rxa2 {[%emt 0:00:06]} Rxc4 {[%emt 0:03:41]} 44. Ra7+ {[%emt 0:00:19]} Kg8 {[%emt 0:00:09]} 45. Rb7 {[%emt 0:00:06]} Rc5 {[%emt 0:05:48]} 46. Rxb6 {[%emt 0:03:06]} Rxh5 {[%emt 0:00:07]} 47. Kg4 {[%emt 0:00:08]} Rh1 {[%emt 0:00:22]} 48. Rb7 {[%emt 0:03:15]} h5+ {[%emt 0:01:40]} 49. Kg3 {[%emt 0:00:20]} Rg1+ {[%emt 0:01:45]} 50. Kh4 {[%emt 0:00:22]} Rh1+ {[%emt 0:00:06]} 51. Kg3 {[%emt 0:00:05]} Rc1 {[%emt 0:01:27]} 52. Rb5 {[%emt 0:00:48]} Rh1 {[%emt 0:00:11]} 53. Rb7 {[%emt 0:00:10]} Kh8 {[%emt 0:00:14]} 54. Ra7 {[%emt 0:00:54]} Rb1 {[%emt 0:01:28]} 55. Ra5 {[%emt 0:00:27]} Rh1 {[%emt 0:00:07]} 56. Kg2 {[%emt 0:00:28]} Rh4 {[%emt 0:00:06]} 57. Kg3 {[%emt 0:00:03]} Rh1 {[%emt 0:00:23]} 58. Kg2 {[%emt 0:00:06]} Rh4 {[%emt 0:00:41]} 59. Kg3 {[%emt 0:00:05]} Rg4+ {[%emt 0:00:28]} 60. Kh3 {[%emt 0:00:09]} Rb4 {[%emt 0:00:05]} 61. Rxh5+ {[%emt 0:00:08]} 1/2-1/2

[Event "WYCC 2018 G16"]
[Site "Halkidiki"]
[Date "2018.10.27"]
[Round "8"]
[White "Miroshnik, Ekaterina"]
[Black "Nayberg, Simona"]
[Result "1-0"]
[ECO "D30"]
[WhiteElo "2023"]
[BlackElo "1857"]
[Annotator "NA"]
[PlyCount "131"]
[EventDate "2018.10.20"]
[EventType "swiss"]
[EventCountry "GRE"]
[SourceTitle "playchess.com"]
[Source "ChessBase"]
[SourceQuality "1"]
[TimeControl "40/5400+30:1800+30"]

1. d4 {[%emt 0:00:00]} d5 {[%emt 0:00:00]} 2. c4 {[%emt 0:00:00]} e6 {[%emt 0:00:00]} 3. Nf3 {[%emt 0:00:00]} Nf6 {[%emt 0:00:01]} 4. e3 {[%emt 0:00:00]} Be7 {[%emt 0:00:48]} 5. Bd3 {[%emt 0:00:00]} O-O {[%emt 0:00:52]} 6. O-O {[%emt 0:00:01]} dxc4 {[%emt 0:00:33]} 7. Bxc4 {[%emt 0:00:05]} c5 {[%emt 0:00:15]} 8. b3 {[%emt 0:00:31]} a6 {[%emt 0:01:03]} 9. Bb2 {[%emt 0:00:06]} b5 {[%emt 0:00:55]} 10. Bd3 {[%emt 0:01:19]} Bb7 {[%emt 0:01:29]} 11. Nbd2 {[%emt 0:00:12]} Nbd7 {[%emt 0:01:10]} 12. a4 {[%emt 0:00:07]} b4 {[%emt 0:01:45]} 13. Rc1 {[%emt 0:05:32]} Rc8 {[%emt 0:12:27]} 14. Qe2 {[%emt 0:00:21]} a5 {[%emt 0:00:53]} 15. Ba6 {[%emt 0:09:45]} Bxa6 {[%emt 0:07:56]} 16. Qxa6 {[%emt 0:00:07]} Ra8 {[%emt 0:02:03]} 17. Qe2 {[%emt 0:02:08]} Qb8 {[%emt 0:05:05]} 18. Rc2 {[%emt 0:06:40]} Qb7 {[%emt 0:02:38]} 19. Rfc1 {[%emt 0:01:31]} Rfc8 {[%emt 0:02:37]} 20. Nc4 {[%emt 0:09:32]} Ne4 {[%emt 0:08:07]} 21. Nfe5 {[%emt 0:02:22]} Nxe5 {[%emt 0:03:52]} 22. dxe5 {[%emt 0:00:37]} h6 {[%emt 0:04:13]} 23. f3 {[%emt 0:12:08]} Ng5 {[%emt 0:00:44]} 24. Nd6 {[%emt 0:04:07]} Bxd6 {[%emt 0:04:05]} 25. exd6 {[%emt 0:00:02]} Rd8 {[%emt 0:13:49]} 26. Rxc5 {[%emt 0:08:00]} Rxd6 {[%emt 0:00:54]} 27. Bd4 {[%emt 0:07:43]} f6 {[%emt 0:07:09]} 28. Qc4 {[%emt 0:09:18]} Kh8 {[%emt 0:02:31]} 29. h4 {[%emt 0:02:52]} Nxf3+ {[%emt 0:05:34]} 30. gxf3 {[%emt 0:00:33]} Qxf3 {[%emt 0:00:05]} 31. Qf1 {[%emt 0:09:59]} Qg4+ {[%emt 0:04:48]} 32. Qg2 {[%emt 0:00:08]} Qxg2+ {[%emt 0:00:26]} 33. Kxg2 {[%emt 0:00:05]} e5 {[%emt 0:00:03]} 34. Rc8+ {[%emt 0:01:49]} Rxc8 {[%emt 0:00:11]} 35. Rxc8+ {[%emt 0:00:03]} Kh7 {[%emt 0:00:03]} 36. Bc5 {[%emt 0:04:55]} Rd3 {[%emt 0:02:34]} 37. Ra8 {[%emt 0:00:24]} Rxb3 {[%emt 0:01:00]} 38. Rxa5 {[%emt 0:00:05]} Rb2+ {[%emt 0:02:32]} 39. Kg3 {[%emt 0:03:37]} b3 {[%emt 0:01:38]} 40. Rb5 {[%emt 0:00:00]} Ra2 {[%emt 0:00:00]} 41. a5 {[%emt 0:08:16]} Kg6 {[%emt 0:05:31]} 42. Bb6 {[%emt 0:07:08]} Ra3 {[%emt 0:02:50]} 43. Bc7 {[%emt 0:02:03]} Kf5 {[%emt 0:07:07]} 44. Rb4 {[%emt 0:01:59]} h5 {[%emt 0:01:18]} 45. Bd8 {[%emt 0:03:14]} g5 {[%emt 0:05:08]} 46. hxg5 {[%emt 0:06:19]} fxg5 {[%emt 0:00:49]} 47. e4+ {[%emt 0:01:00]} Ke6 {[%emt 0:02:19]} 48. Bxg5 {[%emt 0:01:53]} Rxa5 {[%emt 0:01:14]} 49. Rxb3 {[%emt 0:00:23]} Ra4 {[%emt 0:00:43]} 50. Rb6+ {[%emt 0:03:56]} Kf7 {[%emt 0:02:18]} 51. Kf3 {[%emt 0:00:06]} Ra3+ {[%emt 0:00:59]} 52. Be3 {[%emt 0:00:05]} Kg7 {[%emt 0:01:15]} 53. Re6 {[%emt 0:00:19]} Ra5 {[%emt 0:01:25]} 54. Rxe5 {[%emt 0:00:44]} Ra3 {[%emt 0:01:02]} 55. Rxh5 {[%emt 0:00:06]} Kg6 {[%emt 0:00:04]} 56. Rg5+ {[%emt 0:00:06]} Kf7 {[%emt 0:00:09]} 57. Kf4 {[%emt 0:00:05]} Ra4 {[%emt 0:00:06]} 58. Bc5 {[%emt 0:00:07]} Ke6 {[%emt 0:00:25]} 59. Rg6+ {[%emt 0:00:13]} Kf7 {[%emt 0:00:03]} 60. Rc6 {[%emt 0:00:26]} Ra1 {[%emt 0:00:10]} 61. Ke5 {[%emt 0:00:04]} Rd1 {[%emt 0:00:10]} 62. Rc7+ {[%emt 0:00:08]} Kg6 {[%emt 0:00:09]} 63. Ke6 {[%emt 0:00:08]} Re1 {[%emt 0:00:07]} 64. e5 {[%emt 0:00:04]} Re2 {[%emt 0:00:06]} 65. Bd6 {[%emt 0:00:04]} Re4 {[%emt 0:00:11]} 66. Kd7 {[%emt 0:00:04]} 1-0

[Event "WYCC 2018 G16"]
[Site "Halkidiki"]
[Date "2018.10.27"]
[Round "8"]
[White "Nestorovic, Katarina"]
[Black "Nguyen, Vu Thu Hien"]
[Result "0-1"]
[ECO "C11"]
[WhiteElo "2015"]
[BlackElo "1841"]
[Annotator "NA"]
[PlyCount "128"]
[EventDate "2018.10.20"]
[EventType "swiss"]
[EventCountry "GRE"]
[SourceTitle "playchess.com"]
[Source "ChessBase"]
[SourceQuality "1"]
[TimeControl "40/5400+30:1800+30"]

1. e4 {[%emt 0:00:00]} c6 {[%emt 0:00:00]} 2. d4 {[%emt 0:00:00]} d5 {[%emt 0:00:00]} 3. f3 {[%emt 0:00:00]} e6 {[%emt 0:00:08]} 4. Nc3 {[%emt 0:00:00]} Nf6 {[%emt 0:00:08]} 5. e5 {[%emt 0:02:58]} Nfd7 {[%emt 0:00:05]} 6. f4 {[%emt 0:01:32]} c5 {[%emt 0:00:06]} 7. Nf3 {[%emt 0:00:36]} Nc6 {[%emt 0:00:17]} 8. Be3 {[%emt 0:00:39]} cxd4 {[%emt 0:02:47]} 9. Nxd4 {[%emt 0:01:37]} Qb6 {[%emt 0:00:16]} 10. Qd2 {[%emt 0:04:00]} Qb4 {[%emt 0:12:48]} 11. a3 {[%emt 0:11:06]} Qxb2 {[%emt 0:11:16]} 12. Ra2 {[%emt 0:07:34]} Qb6 {[%emt 0:03:05]} 13. Nxe6 {[%emt 0:04:03]} d4 {[%emt 0:00:16]} 14. Nxd4 {[%emt 0:03:23]} Nxd4 {[%emt 0:00:58]} 15. Bxd4 {[%emt 0:01:05]} Qe6 {[%emt 0:00:36]} 16. Bb5 {[%emt 0:03:59]} a6 {[%emt 0:00:16]} 17. Ba4 {[%emt 0:00:37]} Be7 {[%emt 0:01:34]} 18. Bb3 {[%emt 0:00:44]} Qg4 {[%emt 0:01:06]} 19. O-O {[%emt 0:03:32]} O-O {[%emt 0:04:08]} 20. Qe3 {[%emt 0:01:36]} Nb8 {[%emt 0:01:20]} 21. Nd5 {[%emt 0:04:06]} Nc6 {[%emt 0:02:54]} 22. Bc5 {[%emt 0:15:48]} Bxc5 {[%emt 0:05:54]} 23. Qxc5 {[%emt 0:00:13]} Bd7 {[%emt 0:01:17]} 24. Rf3 {[%emt 0:02:58]} Rad8 {[%emt 0:02:48]} 25. Nf6+ {[%emt 0:12:24]} gxf6 {[%emt 0:00:04]} 26. Rg3 {[%emt 0:00:06]} fxe5 {[%emt 0:00:05]} 27. Rxg4+ {[%emt 0:01:15]} Bxg4 {[%emt 0:00:06]} 28. c3 {[%emt 0:00:30]} Rfe8 {[%emt 0:02:30]} 29. Rf2 {[%emt 0:02:11]} Bh5 {[%emt 0:00:44]} 30. f5 {[%emt 0:00:53]} Bd1 {[%emt 0:01:05]} 31. Ba2 {[%emt 0:04:36]} e4 {[%emt 0:02:06]} 32. f6 {[%emt 0:02:18]} Re5 {[%emt 0:02:20]} 33. Qe3 {[%emt 0:02:02]} Kf8 {[%emt 0:00:21]} 34. Qh6+ {[%emt 0:01:23]} Ke8 {[%emt 0:00:05]} 35. Qxh7 {[%emt 0:00:50]} Bh5 {[%emt 0:00:16]} 36. Qg8+ {[%emt 0:03:51]} Kd7 {[%emt 0:00:03]} 37. Rd2+ {[%emt 0:00:24]} Kc8 {[%emt 0:00:08]} 38. Rxd8+ {[%emt 0:00:12]} Nxd8 {[%emt 0:00:02]} 39. Qg3 {[%emt 0:00:22]} Nc6 {[%emt 0:05:20]} 40. Qe3 {[%emt 0:00:00]} Bg6 {[%emt 0:00:00]} 41. g4 {[%emt 0:05:40]} Rb5 {[%emt 0:03:11]} 42. a4 {[%emt 0:09:54]} Ra5 {[%emt 0:01:07]} 43. Bb3 {[%emt 0:01:55]} Ne5 {[%emt 0:00:26]} 44. h3 {[%emt 0:01:27]} Nd7 {[%emt 0:02:35]} 45. Qd4 {[%emt 0:02:25]} Re5 {[%emt 0:01:05]} 46. Bd5 {[%emt 0:01:14]} e3 {[%emt 0:01:33]} 47. Bxb7+ {[%emt 0:02:30]} Kc7 {[%emt 0:00:05]} 48. Bxa6 {[%emt 0:04:32]} Re6 {[%emt 0:00:14]} 49. Qa7+ {[%emt 0:02:43]} Kd6 {[%emt 0:00:16]} 50. g5 {[%emt 0:00:26]} Bh5 {[%emt 0:02:26]} 51. Bb5 {[%emt 0:03:47]} Nc5 {[%emt 0:02:45]} 52. Qb6+ {[%emt 0:00:14]} Kd5 {[%emt 0:00:13]} 53. Qd8+ {[%emt 0:03:07]} Rd6 {[%emt 0:01:03]} 54. Bc4+ {[%emt 0:00:22]} Ke5 {[%emt 0:01:15]} 55. Qe7+ {[%emt 0:00:16]} Ne6 {[%emt 0:00:39]} 56. Bxe6 {[%emt 0:01:26]} Rxe6 {[%emt 0:00:21]} 57. Qb4 {[%emt 0:00:34]} e2 {[%emt 0:01:01]} 58. Kf2 {[%emt 0:00:16]} Kf5 {[%emt 0:00:23]} 59. Qb1+ {[%emt 0:00:45]} Kxg5 {[%emt 0:00:08]} 60. Qc1+ {[%emt 0:00:28]} Kg6 {[%emt 0:02:00]} 61. Ke1 {[%emt 0:00:32]} Rxf6 {[%emt 0:02:45]} 62. Qb1+ {[%emt 0:00:25]} Kg7 {[%emt 0:00:14]} 63. Kd2 {[%emt 0:00:36]} Rd6+ {[%emt 0:00:51]} 64. Kc2 {[%emt 0:00:25]} Bg6+ {[%emt 0:00:04]} 0-1

[Event "WYCC 2018 G16"]
[Site "Halkidiki"]
[Date "2018.10.27"]
[Round "8"]
[White "Jarocka, Liwia"]
[Black "Hilario, Aleyla"]
[Result "1/2-1/2"]
[ECO "C88"]
[WhiteElo "1990"]
[BlackElo "2175"]
[Annotator "NA"]
[PlyCount "67"]
[EventDate "2018.10.20"]
[EventType "swiss"]
[EventCountry "GRE"]
[SourceTitle "playchess.com"]
[Source "ChessBase"]
[SourceQuality "1"]
[TimeControl "40/5400+30:1800+30"]

1. e4 {[%emt 0:00:00]} e5 {[%emt 0:03:40]} 2. Nf3 {[%emt 0:00:00]} Nc6 {[%emt 0:00:57]} 3. Bb5 {[%emt 0:00:00]} a6 {[%emt 0:00:06]} 4. Ba4 {[%emt 0:00:00]} Nf6 {[%emt 0:00:04]} 5. O-O {[%emt 0:00:10]} Be7 {[%emt 0:00:03]} 6. Re1 {[%emt 0:00:07]} b5 {[%emt 0:00:07]} 7. Bb3 {[%emt 0:00:07]} O-O {[%emt 0:00:04]} 8. a4 {[%emt 0:00:07]} Rb8 {[%emt 0:02:50]} 9. axb5 {[%emt 0:00:16]} axb5 {[%emt 0:00:02]} 10. Nc3 {[%emt 0:00:16]} d6 {[%emt 0:00:37]} 11. h3 {[%emt 0:02:11]} Be6 {[%emt 0:05:25]} 12. Bxe6 {[%emt 0:09:35]} fxe6 {[%emt 0:00:08]} 13. d3 {[%emt 0:00:34]} Qe8 {[%emt 0:02:17]} 14. Ne2 {[%emt 0:03:33]} Nh5 {[%emt 0:07:42]} 15. Ng3 {[%emt 0:11:03]} Nxg3 {[%emt 0:27:55]} 16. fxg3 {[%emt 0:00:06]} Qg6 {[%emt 0:00:12]} 17. g4 {[%emt 0:00:19]} Nd4 {[%emt 0:03:29]} 18. Be3 {[%emt 0:10:16]} Nxf3+ {[%emt 0:01:45]} 19. gxf3 {[%emt 0:00:04]} Rf7 {[%emt 0:02:45]} 20. Ra7 {[%emt 0:01:37]} Bh4 {[%emt 0:00:20]} 21. Rf1 {[%emt 0:00:11]} Bg5 {[%emt 0:05:12]} 22. Qe2 {[%emt 0:01:16]} h5 {[%emt 0:03:25]} 23. Rfa1 {[%emt 0:05:37]} Rbf8 {[%emt 0:01:50]} 24. Ra8 {[%emt 0:00:35]} Bd8 {[%emt 0:00:24]} 25. Kg2 {[%emt 0:25:07]} Qf6 {[%emt 0:06:44]} 26. Rf1 {[%emt 0:02:19]} hxg4 {[%emt 0:00:37]} 27. hxg4 {[%emt 0:00:13]} Qg6 {[%emt 0:00:06]} 28. Qe1 {[%emt 0:08:16]} c5 {[%emt 0:10:37]} 29. Qg3 {[%emt 0:03:51]} Bg5 {[%emt 0:00:07]} 30. Rxf8+ {[%emt 0:00:09]} Rxf8 {[%emt 0:00:01]} 31. Bxg5 {[%emt 0:01:02]} Qxg5 {[%emt 0:00:02]} 32. Ra1 {[%emt 0:00:50]} Kf7 {[%emt 0:04:56]} 33. Qh2 {[%emt 0:07:31]} Qd2+ {[%emt 0:05:07]} 34. Kg3 {[%emt 0:00:43]} 1/2-1/2